bitfinex/quotes_SOLUSD_20250112
["timestamp","ask_amount","ask_price","bid_price","bid_amount"]
[1736670010580,20.0,187.08,187.07,10.0]
[1736670010782,28.92971867,187.08,187.07,5.0]
[1736670011284,28.92971867,187.08,187.07,10.0]
[1736670014090,20.0,187.08,187.07,10.0]
[1736670016093,20.0,187.08,187.07,5.0]
[1736670016269,20.0,187.08,187.07,10.0]
[1736670017394,20.0,187.08,187.07,5.0]
[1736670017696,28.92971867,187.08,187.07,5.0]
[1736670018195,20.0,187.08,187.07,10.0]
[1736670023197,20.0,187.08,187.07,5.0]
[1736670025580,20.0,187.08,187.07,10.0]
[1736670034795,20.0,187.08,187.07,5.0]
[1736670036112,20.0,187.08,187.07,10.0]
[1736670036815,20.0,187.08,187.07,5.0]
[1736670037397,20.0,187.08,187.07,10.0]
[1736670038823,20.0,187.08,187.07,5.0]
[1736670040009,20.0,187.05,187.04,6.6339]
[1736670040794,20.0,187.05,187.04,5.0]
[1736670042125,8.92971867,187.06,187.04,5.0]
[1736670042294,20.0,187.05,187.04,5.0]
[1736670042496,20.0,187.05,187.04,10.0]
[1736670047319,20.0,187.05,187.03,10.0]
[1736670047620,20.0,187.04,187.03,10.0]
[1736670056403,81.9,187.07,187.06,5.0]
[1736670056602,81.9,187.07,187.06,10.0]
[1736670058436,20.0,187.07,187.06,10.0]
[1736670062939,8.92971867,187.08,187.06,10.0]
[1736670063548,28.92971867,187.09,187.06,10.0]
[1736670064632,20.0,187.07,187.06,10.0]
[1736670065637,28.92971867,187.09,187.06,10.0]
[1736670065823,8.92971867,187.08,187.06,10.0]
[1736670066743,8.92971867,187.08,187.07,5.0]
[1736670066914,8.92971867,187.08,187.05,5.0]
[1736670066915,20.0,187.06,187.05,5.0]
[1736670067115,28.92971867,187.06,187.04,5.0]
[1736670067337,8.92971867,187.05,187.04,5.0]
[1736670071145,8.92971867,187.06,187.04,5.0]
[1736670073146,8.92971867,187.06,187.05,5.0]
[1736670073462,90.82971867,187.06,187.05,5.0]
[1736670074252,81.9,187.06,187.05,5.0]
[1736670074442,81.9,187.06,187.05,10.0]
[1736670076544,81.9,187.06,187.05,5.0]
[1736670076722,81.9,187.06,187.05,10.0]
[1736670077658,81.9,187.06,187.05,5.0]
[1736670077831,81.9,187.06,187.05,10.0]
[1736670079352,90.82971867,187.08,187.05,10.0]
[1736670079557,20.0,187.06,187.05,10.0]
[1736670082249,20.0,187.06,187.05,5.0]
[1736670082552,20.0,187.06,187.05,10.0]
[1736670084254,8.92971867,187.07,187.05,10.0]
[1736670084552,8.92971867,187.07,187.05,5.0]
[1736670084727,8.92971867,187.07,187.05,10.0]
[1736670088661,20.0,187.06,187.05,10.0]
[1736670095068,81.9,187.11,187.07,5.0]
[1736670095233,90.82971867,187.11,187.07,5.0]
[1736670095433,20.0,187.08,187.07,5.0]
[1736670098474,20.0,187.08,187.07,10.0]
[1736670106573,81.9,187.1,187.09,10.0]
[1736670112265,20.0,187.1,187.09,10.0]
[1736670120578,81.9,187.16,187.13,5.0]
[1736670120762,8.92971867,187.15,187.12,10.0]
[1736670120961,8.92971867,187.14,187.12,10.0]
[1736670122284,8.92971867,187.14,187.13,5.0]
[1736670123770,20.0,187.11,187.1,5.0]
[1736670123967,8.92971867,187.11,187.08,5.0]
[1736670124162,8.92971867,187.09,187.08,5.0]
[1736670124474,8.92971867,187.09,187.07,5.0]
[1736670124673,20.0,187.06,187.05,10.0]
[1736670124882,8.92971867,187.06,187.05,10.0]
[1736670125695,8.92971867,187.07,187.05,10.0]
[1736670125884,8.92971867,187.07,187.06,10.0]
[1736670126263,8.92971867,187.08,187.06,10.0]
[1736670126958,8.92971867,187.08,187.07,5.0]
[1736670127391,28.92971867,187.08,187.07,5.0]
[1736670127887,28.92971867,187.08,187.06,10.0]
[1736670128278,28.92971867,187.08,187.07,5.0]
[1736670131194,20.0,187.08,187.07,10.0]
[1736670147313,81.9,187.15,187.12,5.0]
[1736670147521,20.0,187.13,187.12,10.0]
[1736670149217,8.92971867,187.14,187.12,10.0]
[1736670150815,8.92971867,187.13,187.12,10.0]
[1736670151117,28.92971867,187.13,187.09,5.0]
[1736670151292,20.0,187.09,187.07,10.0]
[1736670151485,20.0,187.09,187.07,5.0]
[1736670151486,8.92971867,187.08,187.07,5.0]
[1736670151695,20.0,187.07,187.06,5.0]
[1736670151905,28.92971867,187.07,187.06,5.0]
[1736670152288,28.92971867,187.07,187.05,5.0]
[1736670152599,28.92971867,187.06,187.04,10.0]
[1736670152816,8.92971867,187.05,187.04,10.0]
[1736670153386,28.92971867,187.06,187.04,10.0]
[1736670153588,28.92971867,187.05,187.04,5.0]
[1736670153884,28.92971867,187.05,187.03,5.0]
[1736670154198,28.92971867,187.04,187.03,5.0]
[1736670155115,28.92971867,187.04,187.03,10.0]
[1736670156703,28.92971867,187.04,187.03,5.0]
[1736670157919,20.0,187.04,187.03,5.0]
[1736670158291,20.0,187.04,187.03,10.0]
[1736670158517,20.0,187.04,187.03,5.0]
[1736670158992,20.0,187.04,187.03,10.0]
[1736670159291,20.0,187.04,187.03,5.0]
[1736670161025,20.0,187.04,187.03,10.0]
[1736670161211,20.0,187.04,187.03,5.0]
[1736670162607,28.92971867,187.04,187.03,5.0]
[1736670163422,28.92971867,187.04,187.03,10.0]
[1736670164001,20.0,187.04,187.03,10.0]
[1736670169224,28.92971867,187.04,187.03,5.0]
[1736670169525,28.92971867,187.04,187.02,5.0]
[1736670169526,8.92971867,187.04,187.02,5.0]
[1736670169826,28.92971867,187.03,187.02,10.0]
[1736670170025,28.92971867,187.03,187.02,5.0]
[1736670171106,28.92971867,187.03,187.0,5.0]
[1736670171314,28.92971867,187.01,187.0,5.0]
[1736670171517,28.92971867,187.01,187.0,10.0]
[1736670171833,20.0,187.01,187.0,10.0]
[1736670174632,20.0,187.01,187.0,5.0]
[1736670175707,20.0,187.01,187.0,10.0]
[1736670179033,81.9,187.04,187.0,10.0]
[1736670179337,81.9,187.04,187.03,5.0]
[1736670179935,90.82971867,187.04,187.03,5.0]
[1736670181239,8.92971867,187.04,187.03,5.0]
[1736670182737,20.0,187.02,187.01,10.0]
[1736670182940,28.92971867,187.02,187.01,5.0]
[1736670186425,28.92971867,187.02,186.99,5.0]
[1736670186750,8.92971867,187.0,186.99,5.0]
[1736670187946,20.0,186.98,186.97,10.0]
[1736670189949,20.0,186.98,186.97,5.0]
[1736670192553,8.92971867,186.99,186.98,5.0]
[1736670192554,20.0,186.99,186.98,5.0]
[1736670193366,20.0,186.99,186.98,10.0]
[1736670201066,20.0,186.99,186.98,5.0]
[1736670201249,20.0,186.99,186.98,10.0]
[1736670208158,81.9,187.01,187.0,10.0]
[1736670209276,90.82971867,187.01,187.0,10.0]
[1736670209779,81.9,187.01,187.0,10.0]
[1736670211172,8.92971867,187.02,187.0,10.0]
[1736670212787,81.9,187.03,187.01,5.0]
[1736670213010,8.92971867,187.02,187.01,5.0]
[1736670213846,20.0,187.01,187.0,10.0]
[1736670214048,28.92971867,187.01,186.98,5.0]
[1736670214263,8.92971867,186.99,186.98,5.0]
[1736670214689,8.92971867,186.99,186.98,10.0]
[1736670214862,8.92971867,186.99,186.98,5.0]
[1736670226411,90.82971867,187.0,186.98,5.0]
[1736670227286,81.9,187.0,186.99,5.0]
[1736670227486,90.82971867,187.0,186.99,5.0]
[1736670232390,90.82971867,187.0,186.98,5.0]
[1736670232602,8.92971867,186.99,186.98,5.0]
[1736670241292,81.9,187.0,186.98,5.0]
[1736670241475,90.82971867,187.0,186.99,5.0]
[1736670241676,81.9,187.0,186.99,5.0]
[1736670241875,90.82971867,187.0,186.99,5.0]
[1736670243607,81.9,187.0,186.99,5.0]
[1736670244074,8.92971867,187.03,186.99,10.0]
[1736670244275,8.92971867,187.03,187.01,10.0]
[1736670244890,20.0,187.03,187.02,5.0]
[1736670245093,28.92971867,187.03,187.02,5.0]
[1736670247897,81.9,187.05,187.04,10.0]
[1736670248199,90.82971867,187.05,187.04,10.0]
[1736670250609,20.0,187.03,187.02,5.0]
[1736670250905,28.92971867,187.03,187.02,5.0]
[1736670253718,28.92971867,187.03,187.01,5.0]
[1736670253890,20.0,187.0,186.99,5.0]
[1736670254085,28.92971867,187.0,186.99,5.0]
[1736670255910,8.92971867,187.0,186.99,5.0]
[1736670259601,90.82971867,187.0,186.98,5.0]
[1736670259802,8.92971867,186.99,186.98,5.0]
[1736670262216,20.0,186.98,186.97,5.0]
[1736670262400,28.92971867,186.98,186.97,5.0]
[1736670267025,20.0,186.95,186.94,1.5412]
[1736670267328,8.92971867,186.95,186.92,5.0]
[1736670267511,8.92971867,186.94,186.92,5.0]
[1736670267911,8.92971867,186.94,186.93,5.0]
[1736670270229,8.92971867,186.95,186.93,5.0]
[1736670271511,90.82971867,186.96,186.93,5.0]
[1736670272207,81.9,186.96,186.94,5.0]
[1736670273336,81.9,186.96,186.95,5.0]
[1736670273509,90.82971867,186.96,186.94,5.0]
[1736670273711,81.9,186.96,186.94,5.0]
[1736670274035,8.92971867,186.95,186.94,5.0]
[1736670279839,81.9,186.96,186.94,5.0]
[1736670280025,90.82971867,186.96,186.94,5.0]
[1736670280745,81.9,186.96,186.94,5.0]
[1736670282209,81.9,186.96,186.95,5.0]
[1736670282416,81.9,186.96,186.95,6.5961]
[1736670283342,20.0,186.97,186.96,5.0]
[1736670284442,8.92971867,186.98,186.96,5.0]
[1736670285142,8.92971867,186.98,186.97,5.0]
[1736670285443,8.92971867,186.98,186.96,5.0]
[1736670287640,8.92971867,186.97,186.96,5.0]
[1736670297645,28.92971867,186.98,186.96,5.0]
[1736670298152,28.92971867,186.98,186.97,5.0]
[1736670299648,90.82971867,187.01,186.99,5.0]
[1736670301247,81.9,187.01,186.99,5.0]
[1736670301425,90.82971867,187.01,186.99,5.0]
[1736670302450,8.92971867,187.0,186.99,5.0]
[1736670303557,8.92971867,187.0,186.98,5.0]
[1736670303732,28.92971867,186.99,186.98,5.0]
[1736670306756,28.92971867,186.99,186.96,5.0]
[1736670306937,8.92971867,186.97,186.96,5.0]
[1736670307142,8.92971867,186.97,186.95,5.0]
[1736670307349,8.92971867,186.96,186.94,5.0]
[1736670307667,8.92971867,186.95,186.94,5.0]
[1736670312171,8.92971867,186.95,186.93,5.0]
[1736670312380,8.92971867,186.94,186.93,5.0]
[1736670316076,8.92971867,186.95,186.93,5.0]
[1736670321510,8.92971867,186.95,186.94,5.0]
[1736670321657,28.92971867,186.95,186.94,5.0]
[1736670321985,28.92971867,186.95,186.93,5.0]
[1736670322275,8.92971867,186.94,186.93,5.0]
[1736670323466,8.92971867,186.94,186.92,5.0]
[1736670324297,8.92971867,186.93,186.92,5.0]
[1736670325262,8.92971867,186.93,186.91,5.0]
[1736670325462,28.92971867,186.92,186.91,5.0]
[1736670326084,28.92971867,186.92,186.9,6.5822]
[1736670326396,28.92971867,186.91,186.9,6.5822]
[1736670326967,20.0,186.91,186.9,6.5822]
[1736670330198,28.92971867,186.91,186.9,6.5822]
[1736670331307,28.92971867,186.91,186.9,5.0]
[1736670333821,20.0,186.91,186.9,5.0]
[1736670342240,8.92971867,186.93,186.9,5.0]
[1736670343705,20.0,186.91,186.9,5.0]
[1736670344840,28.92971867,186.91,186.88,5.0]
[1736670345127,8.92971867,186.89,186.88,5.0]
[1736670353341,8.92971867,186.89,186.87,5.0]
[1736670353523,28.92971867,186.88,186.87,5.0]
[1736670358958,20.0,186.88,186.87,5.0]
[1736670361050,28.92971867,186.88,186.87,5.0]
[1736670370458,28.92971867,186.88,186.86,6.6146]
[1736670370661,20.0,186.85,186.84,5.0]
[1736670370874,28.92971867,186.85,186.84,5.0]
[1736670371044,28.92971867,186.85,186.82,0.9065424]
[1736670371245,8.92971867,186.83,186.82,0.9065424]
[1736670372460,35.71887468,186.84,186.82,0.9065424]
[1736670372660,28.92971867,186.83,186.82,0.9065424]
[1736670374082,20.0,186.83,186.82,5.9065424]
[1736670374276,28.92971867,186.83,186.82,5.9065424]
[1736670374438,20.0,186.83,186.82,5.9065424]
[1736670374775,81.9,186.88,186.85,5.0]
[1736670374776,8.92971867,186.86,186.85,5.0]
[1736670376268,28.92971867,186.86,186.85,5.0]
[1736670378345,20.0,186.86,186.85,5.0]
[1736670383859,81.9,186.92,186.89,5.0]
[1736670384052,8.92971867,186.91,186.9,5.0]
[1736670389783,20.0,186.93,186.92,5.0]
[1736670390855,28.92971867,186.93,186.92,5.0]
[1736670392977,28.92971867,186.93,186.89,5.0]
[1736670393174,8.92971867,186.9,186.89,5.0]
[1736670393375,8.92971867,186.9,186.88,5.0]
[1736670393549,8.92971867,186.89,186.88,5.0]
[1736670395376,20.0,186.87,186.86,5.0]
[1736670395564,28.92971867,186.87,186.86,5.0]
[1736670399385,8.92971867,186.88,186.87,5.0]
[1736670399701,20.0,186.89,186.88,5.0]
[1736670413799,2.19356517,186.95,186.88,5.0]
[1736670414118,8.92971867,186.94,186.93,5.0]
[1736670417508,8.92971867,186.94,186.92,5.0]
[1736670417806,8.92971867,186.93,186.92,5.0]
[1736670420125,8.92971867,186.93,186.91,5.0]
[1736670420313,8.92971867,186.92,186.91,5.0]
[1736670420618,8.92971867,186.92,186.87,4.9359]
[1736670420619,20.0,186.89,186.87,4.9359]
[1736670420809,8.92971867,186.88,186.87,4.9359]
[1736670422536,20.0,186.86,186.85,4.9359]
[1736670422812,28.92971867,186.86,186.85,4.9359]
[1736670428803,20.0,186.89,186.87,4.9359]
[1736670429002,8.92971867,186.88,186.87,4.9359]
[1736670430518,20.0,186.88,186.87,4.9359]
[1736670430707,28.92971867,186.88,186.87,4.9359]
[1736670440907,28.92971867,186.88,186.82,9.83626107]
[1736670440908,81.9,186.95,186.91,4.9359]
[1736670441140,81.9,186.95,186.92,4.9359]
[1736670441308,20.0,186.93,186.92,4.9359]
[1736670445635,28.92971867,186.93,186.92,4.9359]
[1736670447134,20.0,186.93,186.92,4.9359]
[1736670447320,28.92971867,186.93,186.92,4.9359]
[1736670454950,28.85149706,186.93,186.92,4.9359]
[1736670461259,8.92971867,186.94,186.92,4.9359]
[1736670462635,8.92971867,186.94,186.93,4.9359]
[1736670464023,8.92971867,186.95,186.93,4.9359]
[1736670466648,8.92971867,186.94,186.93,4.9359]
[1736670467028,8.92971867,186.95,186.94,4.9359]
[1736670468361,81.9,187.01,186.98,4.9359]
[1736670468660,8.92971867,186.99,186.98,4.9359]
[1736670472049,28.92971867,186.99,186.98,4.9359]
[1736670475951,20.0,186.99,186.98,4.9359]
[1736670476166,28.92971867,186.99,186.98,4.9359]
[1736670476778,20.0,186.99,186.98,4.9359]
[1736670476951,8.92971867,187.0,186.94,8.92971867]
[1736670476952,8.92971867,187.0,186.99,4.9359]
[1736670477157,8.92971867,187.01,187.0,4.9359]
[1736670482060,8.92971867,187.01,186.99,4.9359]
[1736670482246,8.92971867,187.0,186.99,4.9359]
[1736670493299,8.92971867,187.0,186.98,4.9359]
[1736670493494,28.92971867,186.99,186.97,4.9359]
[1736670493669,8.92971867,186.98,186.97,4.9359]
[1736670497104,8.92971867,186.98,186.96,4.9359]
[1736670497304,8.92971867,186.97,186.96,4.9359]
[1736670497806,8.92971867,186.97,186.95,4.9359]
[1736670497973,8.92971867,186.96,186.95,4.9359]
[1736670498180,8.92971867,186.96,186.94,4.9359]
[1736670498500,8.92971867,186.95,186.94,4.9359]
[1736670504100,8.92971867,186.95,186.93,6.4984]
[1736670504280,8.92971867,186.94,186.93,4.9359]
[1736670505207,20.0,186.92,186.91,4.9359]
[1736670505378,28.92971867,186.92,186.91,4.9359]
[1736670510983,28.92971867,186.92,186.89,4.9359]
[1736670511182,28.92971867,186.9,186.88,4.9359]
[1736670511379,8.92971867,186.89,186.88,4.9359]
[1736670514513,8.92971867,186.89,186.87,4.9359]
[1736670514694,8.92971867,186.88,186.87,4.9359]
[1736670517415,20.0,186.9,186.89,4.9359]
[1736670517711,28.92971867,186.9,186.89,4.9359]
[1736670523524,20.0,186.92,186.89,4.9359]
[1736670523727,8.92971867,186.9,186.89,4.9359]
[1736670525629,8.92971867,186.9,186.89,4.9359]
[1736670527117,8.92971867,186.9,186.88,4.9359]
[1736670527309,8.92971867,186.89,186.88,4.9359]
[1736670529928,8.92971867,186.9,186.88,4.9359]
[1736670532014,8.92971867,186.89,186.88,4.9359]
[1736670534730,8.92971867,186.9,186.88,4.9359]
[1736670535432,8.92971867,186.9,186.89,4.9359]
[1736670538038,8.92971867,186.9,186.88,4.9359]
[1736670538238,8.92971867,186.89,186.87,4.9359]
[1736670538435,8.92971867,186.88,186.87,4.9359]
[1736670548436,20.0,186.89,186.88,4.9359]
[1736670548636,28.92971867,186.89,186.88,4.9359]
[1736670549040,8.92971867,186.89,186.88,4.9359]
[1736670562056,8.92971867,186.89,186.87,4.9359]
[1736670562361,20.0,186.9,186.87,4.9359]
[1736670562540,8.92971867,186.88,186.87,4.9359]
[1736670566030,20.0,186.9,186.87,4.9359]
[1736670566236,28.92971867,186.89,186.88,4.9359]
[1736670587279,20.0,186.89,186.88,4.9359]
[1736670587664,28.92971867,186.89,186.88,4.9359]
[1736670591182,20.0,186.89,186.88,4.9359]
[1736670591387,28.92971867,186.89,186.88,4.9359]
[1736670602866,28.92971867,186.89,186.86,4.9359]
[1736670603194,8.92971867,186.87,186.86,4.9359]
[1736670604498,8.92971867,186.87,186.85,4.9359]
[1736670604811,8.92971867,186.86,186.85,4.9359]
[1736670605707,20.0,186.89,186.85,4.9359]
[1736670605909,20.0,186.89,186.87,4.9359]
[1736670606073,2.12889644,186.93,186.88,4.9359]
[1736670606274,8.92971867,186.9,186.88,4.9359]
[1736670607316,81.9,186.96,186.91,4.9359]
[1736670607474,8.92971867,186.93,186.92,4.9359]
[1736670612405,2.133191,186.97,186.95,4.9359]
[1736670612704,8.92971867,186.96,186.95,4.9359]
[1736670613913,20.0,186.97,186.95,4.9359]
[1736670614113,8.92971867,186.96,186.95,4.9359]
[1736670614288,8.92971867,186.96,186.94,4.9359]
[1736670614497,8.92971867,186.95,186.94,4.9359]
[1736670614715,8.92971867,186.95,186.93,4.9359]
[1736670614918,20.0,186.93,186.92,4.9359]
[1736670615214,28.92971867,186.93,186.92,4.9359]
[1736670616080,28.92971867,186.93,186.91,4.9359]
[1736670616286,8.92971867,186.92,186.91,4.9359]
[1736670617725,8.92971867,186.92,186.89,4.9359]
[1736670617726,20.0,186.9,186.89,4.9359]
[1736670617886,28.92971867,186.9,186.89,4.9359]
[1736670627862,28.92971867,186.9,186.88,4.9359]
[1736670628149,20.0,186.86,186.85,4.9359]
[1736670628444,28.92971867,186.86,186.85,4.9359]
[1736670630515,28.92971867,186.86,186.82,0.9065424]
[1736670630516,28.92971867,186.86,186.83,4.9359]
[1736670630711,8.92971867,186.84,186.82,5.8424424]
[1736670631019,8.92971867,186.83,186.82,5.8424424]
[1736670638321,8.92971867,186.83,186.82,0.9065424]
[1736670645135,81.9,186.86,186.82,5.8424424]
[1736670645347,20.0,186.84,186.83,4.9359]
[1736670645640,20.0,186.84,186.82,0.9065424]
[1736670645641,90.82971867,186.86,186.84,4.9359]
[1736670646145,81.9,186.86,186.85,4.9359]
[1736670648543,22.19892017,186.89,186.85,4.9359]
[1736670648728,8.92971867,186.86,186.85,4.9359]
[1736670649115,20.0,186.89,186.85,4.9359]
[1736670649316,8.92971867,186.86,186.85,4.9359]
[1736670658560,8.92971867,186.86,186.84,4.9359]
[1736670658730,20.0,186.84,186.83,4.9359]
[1736670658923,28.92971867,186.84,186.83,4.9359]
[1736670664530,28.92971867,186.84,186.82,5.8424424]
[1736670664729,8.92971867,186.83,186.82,0.9065424]
[1736670667631,20.0,186.8,186.78,6.5924]
[1736670667944,20.0,186.77,186.76,4.9359]
[1736670668135,28.92971867,186.77,186.76,4.9359]
[1736670671134,20.0,186.8,186.79,4.9359]
[1736670671462,2.13691037,186.87,186.82,4.9359]
[1736670671669,20.0,186.86,186.83,4.9359]
[1736670671843,81.9,186.89,186.84,4.9359]
[1736670672363,20.0,186.86,186.84,4.9359]
[1736670672564,8.92971867,186.85,186.84,4.9359]
[1736670673364,8.92971867,186.85,186.83,4.9359]
[1736670673562,8.92971867,186.84,186.83,4.9359]
[1736670680346,20.0,186.81,186.8,4.9359]
[1736670680541,28.92971867,186.81,186.79,6.5767]
[1736670680755,8.92971867,186.8,186.79,6.5767]
[1736670686480,8.92971867,186.8,186.79,1.6408]
[1736670686676,20.0,186.77,186.75,5.0859]
[1736670686876,8.92971867,186.76,186.75,0.15]
[1736670689157,8.92971867,186.76,186.75,5.0859]
[1736670689477,8.92971867,186.76,186.75,0.15]
[1736670693294,17.85943734,186.76,186.75,0.15]
[1736670693456,20.0,186.73,186.72,4.9359]
[1736670693776,28.92971867,186.73,186.72,4.9359]
[1736670694157,28.92971867,186.73,186.71,4.9359]
[1736670694459,8.92971867,186.72,186.7,4.9359]
[1736670694664,55.71887468,186.75,186.68,1.543]
[1736670694665,55.71887468,186.75,186.74,4.9359]
[1736670694975,20.0,186.75,186.74,4.9359]
[1736670695171,20.0,186.75,186.72,4.9359]
[1736670695367,20.0,186.75,186.7,4.9359]
[1736670695555,55.71887468,186.75,186.72,4.9359]
[1736670696055,55.71887468,186.75,186.68,1.543]
[1736670696056,55.71887468,186.75,186.71,4.9359]
[1736670696255,8.92971867,186.72,186.7,4.9359]
[1736670696454,8.92971867,186.71,186.7,4.9359]
[1736670697269,8.92971867,186.71,186.69,4.9359]
[1736670697482,8.92971867,186.71,186.7,4.9359]
[1736670698781,20.0,186.71,186.7,4.9359]
[1736670698962,28.92971867,186.71,186.7,4.9359]
[1736670701783,20.0,186.71,186.7,4.9359]
[1736670701960,8.92971867,186.73,186.72,4.9359]
[1736670704987,81.9,186.82,186.77,4.9359]
[1736670705292,8.92971867,186.78,186.77,4.9359]
[1736670707703,8.92971867,186.78,186.76,4.9359]
[1736670707865,8.92971867,186.77,186.76,4.9359]
[1736670725379,2.14764693,186.82,186.8,4.9359]
[1736670725609,8.92971867,186.81,186.8,4.9359]
[1736670726698,20.0,186.78,186.77,4.9359]
[1736670726941,8.92971867,186.78,186.75,4.9359]
[1736670727092,81.9,186.82,186.68,6.5995]
[1736670727093,20.0,186.74,186.73,4.9359]
[1736670727404,28.92971867,186.74,186.73,4.9359]
[1736670728089,28.92971867,186.74,186.72,4.9359]
[1736670728302,8.92971867,186.73,186.71,4.9359]
[1736670728488,28.92971867,186.72,186.7,4.9359]
[1736670728688,20.0,186.72,186.71,4.9359]
[1736670730626,28.92971867,186.72,186.71,4.9359]
[1736670738018,20.0,186.75,186.72,4.9359]
[1736670738206,8.92971867,186.73,186.72,4.9359]
[1736670748718,20.0,186.73,186.72,4.9359]
[1736670748900,28.92971867,186.73,186.72,4.9359]
[1736670756013,28.92971867,186.73,186.7,4.9359]
[1736670756210,20.0,186.69,186.68,4.9359]
[1736670756525,8.92971867,186.69,186.67,4.9359]
[1736670756710,8.92971867,186.68,186.67,4.9359]
[1736670760511,8.92971867,186.68,186.66,6.447]
[1736670760804,8.92971867,186.67,186.66,4.9359]
[1736670761741,8.92971867,186.67,186.65,4.9359]
[1736670761906,8.92971867,186.66,186.65,4.9359]
[1736670762505,20.0,186.7,186.66,4.9359]
[1736670762729,8.92971867,186.67,186.66,4.9359]
[1736670762929,8.92971867,186.67,186.65,4.9359]
[1736670763134,8.92971867,186.66,186.65,4.9359]
[1736670767326,20.0,186.64,186.63,4.9359]
[1736670767515,28.92971867,186.64,186.63,4.9359]
[1736670769820,20.0,186.69,186.63,4.9359]
[1736670770128,20.0,186.69,186.67,4.9359]
[1736670770906,20.0,186.69,186.66,4.9359]
[1736670771124,88.57289922,186.72,186.65,4.9359]
[1736670771125,8.92971867,186.67,186.65,4.9359]
[1736670771435,8.92971867,186.66,186.65,4.9359]
[1736670775129,20.0,186.69,186.65,4.9359]
[1736670775434,8.92971867,186.67,186.65,4.9359]
[1736670776436,8.92971867,186.67,186.66,4.9359]
[1736670782042,8.92971867,186.67,186.65,4.9359]
[1736670782225,20.0,186.64,186.63,4.9359]
[1736670782428,28.92971867,186.64,186.62,4.9359]
[1736670782755,28.92971867,186.63,186.62,4.9359]
[1736670785321,28.92971867,186.63,186.61,4.9359]
[1736670785623,8.92971867,186.62,186.61,4.9359]
[1736670786219,8.92971867,186.62,186.6,4.9359]
[1736670786847,8.92971867,186.61,186.6,4.9359]
[1736670803364,11.12453967,186.61,186.6,4.9359]
[1736670803969,20.0,186.63,186.6,4.9359]
[1736670804266,8.92971867,186.61,186.6,4.9359]
[1736670809367,11.13231477,186.61,186.6,4.9359]
[1736670814266,11.13231477,186.61,186.55,84.1758]
[1736670814267,20.0,186.58,186.55,84.1758]
[1736670814483,8.92971867,186.56,186.55,1.5758]
[1736670814950,8.92971867,186.56,186.49,1.5826]
[1736670815145,8.92971867,186.51,186.49,84.1826]
[1736670815560,8.92971867,186.5,186.49,84.1826]
[1736670816070,8.92971867,186.51,186.49,84.1826]
[1736670816247,8.92971867,186.5,186.49,84.1826]
[1736670816447,8.92971867,186.5,186.49,1.5826]
[1736670816848,20.0,186.48,186.47,20.0]
[1736670817151,2.12804512,186.56,186.47,20.0]
[1736670817368,8.92971867,186.51,186.47,20.0]
[1736670818277,8.92971867,186.5,186.47,20.0]
[1736670818571,20.0,186.54,186.47,102.6]
[1736670818758,8.92971867,186.54,186.48,8.92971867]
[1736670818958,8.92971867,186.54,186.49,7.7634]
[1736670819171,20.0,186.58,186.49,16.69311867]
[1736670819369,8.92971867,186.54,186.49,7.7634]
[1736670819548,8.92971867,186.53,186.49,7.7634]
[1736670820574,8.92971867,186.51,186.49,7.7634]
[1736670820970,20.0,186.5,186.49,7.7634]
[1736670821483,8.92971867,186.51,186.49,1.5826]